fUSD/lending_fUSD_20241209
["ID","MTS","AMOUNT","RATE_DAILY","PERIOD"]
[344745221,1733763127849,-300.0,0.00024658,10]
[344745222,1733763127859,-8676.55,0.00024658,4]
[344745223,1733763127869,-300.0,0.00024658,10]
[344745224,1733763127879,-300.0,0.00024658,10]
[344745225,1733763127888,-336.63964787,0.00024658,10]
[344745226,1733763127898,-1000.0,0.00024658,2]
[344745227,1733763127907,-300.0,0.00024658,10]
[344745228,1733763127917,-300.0,0.00024658,10]
[344745229,1733763127927,-300.0,0.00024658,10]
[344745230,1733763127936,-300.0,0.00024658,10]
[344745231,1733763127946,-300.0,0.00024658,10]
[344745232,1733763127957,-300.0,0.00024658,10]
[344745233,1733763127967,-300.0,0.00024658,10]
[344745234,1733763127977,-300.0,0.00024658,10]
[344745235,1733763127987,-300.0,0.00024658,10]
[344745236,1733763127997,-300.0,0.00024658,10]
[344745237,1733763128007,-300.0,0.00024658,10]
[344745238,1733763128017,-300.0,0.00024658,10]
[344745239,1733763128027,-300.0,0.00024658,10]
[344745240,1733763128037,-300.0,0.00024658,10]
[344745241,1733763128047,-300.0,0.00024658,10]
[344745242,1733763128057,-300.0,0.00024658,10]
[344745243,1733763128067,-300.0,0.00024658,10]
[344745244,1733763128076,-300.0,0.00024658,10]
[344745245,1733763128086,-300.0,0.00024658,10]
[344745246,1733763128095,-300.0,0.00024658,10]
[344745247,1733763128104,-300.0,0.00024658,10]
[344745248,1733763128114,-300.0,0.00024658,10]
[344745249,1733763128123,-300.0,0.00024658,10]
[344745250,1733763128133,-300.0,0.00024658,10]
[344745251,1733763128143,-300.0,0.00024658,10]
[344745252,1733763128153,-300.0,0.00024658,10]
[344745253,1733763128162,-300.0,0.00024658,10]
[344745254,1733763128172,-300.0,0.00024658,10]
[344745255,1733763128181,-300.0,0.00024658,10]
[344745256,1733763128191,-300.0,0.00024658,10]
[344745257,1733763128200,-300.0,0.00024658,10]
[344745258,1733763128212,-300.0,0.00024658,10]
[344745259,1733763128222,-300.0,0.00024658,10]
[344745260,1733763128231,-300.0,0.00024658,10]
[344745261,1733763128241,-300.0,0.00024658,10]
[344745262,1733763128250,-300.0,0.00024658,10]
[344745263,1733763128259,-300.0,0.00024658,10]
[344745264,1733763128269,-300.0,0.00024658,10]
[344745265,1733763128279,-300.0,0.00024658,10]
[344745266,1733763128289,-300.0,0.00024658,10]
[344745267,1733763128298,-300.0,0.00024658,10]
[344745268,1733763128308,-300.0,0.00024658,10]
[344745269,1733763128318,-300.0,0.00024658,10]
[344745270,1733763128328,-300.0,0.00024658,10]
[344745271,1733763128338,-300.0,0.00024658,10]
[344745272,1733763128347,-300.0,0.00024658,10]
[344745273,1733763128357,-300.0,0.00024658,10]
[344745274,1733763128366,-300.0,0.00024658,10]
[344745275,1733763128376,-300.0,0.00024658,10]
[344745276,1733763128387,-300.0,0.00024658,10]
[344745277,1733763128397,-300.0,0.00024658,10]
[344745278,1733763128407,-241.4967204,0.00024658,10]
[344745279,1733763128417,-38884.82700183,0.00024658,4]
[344745280,1733763128427,-1078.98847036,0.00024658,4]
[344745281,1733763128437,-1500.0,0.00024674,2]
[344745282,1733763128447,-25618.49152977,0.00024688,2]
[344745283,1733763128460,-400.0,0.000247,2]
[344745284,1733763128469,-200.0,0.000247,2]
[344745285,1733763128479,-500.0,0.000247,2]
[344745286,1733763128488,-321.0,0.00024757,2]
[344745287,1733763128498,-947.0,0.000248,13]
[344745288,1733763128508,-2000.0,0.00024922,120]
[344745289,1733763128517,-201.0,0.0002497,2]
[344745290,1733763128527,-200.0,0.00024991,2]
[344745291,1733763128537,-50000.0,0.00025,3]
[344745292,1733763128548,-500.22297359,0.00025,15]
[344745293,1733763128558,-13119.90207231,0.00025,3]
[344745294,1733763128567,-5000.0,0.00025,2]
[344745295,1733763128577,-120552.80618627,0.00025,2]
[344745296,1733763128591,-102275.51404696,0.00025,2]
[344745297,1733763128600,-21519.53456228,0.00025,10]
[344745298,1733763128610,-1589.91059985,0.00025,2]
[344745299,1733763128619,-254.18068283,0.00025,2]
[344745300,1733763128629,-2906.39469818,0.00025,2]
[344745301,1733763128638,-200.00716018,0.00025,2]
[344745302,1733763128648,-3600.0,0.00025,26]
[344745303,1733763128658,-11766.73882732,0.00025,2]
[344745304,1733763128669,-50000.0,0.00025,8]
[344745305,1733763128678,-62215.82,0.00025,10]
[344745306,1733763128688,-600.78201761,0.00025,2]
[344745307,1733763128697,-7297.493822,0.00025,3]
[344745308,1733763128709,-150.0,0.00025,2]
[344745309,1733763128718,-1023.04839159,0.00025,60]
[344745310,1733763128727,-2372.04361974,0.00025,30]
[344745311,1733763128736,-1487.23752626,0.00025,60]
[344745312,1733763128746,-673.49184114,0.00025,30]
[344745313,1733763128755,-750.0,0.00025,2]
[344745314,1733763128765,-259.8968041,0.00025,120]
[344745315,1733763128774,-300.12,0.00025,2]
[344745316,1733763128783,-150.739695,0.00025,2]
[344745317,1733763128792,-150.739695,0.00025,10]
[344745318,1733763128801,-1001.78,0.00025,2]
[344745319,1733763128811,-1001.78,0.00025,2]
[344745320,1733763128820,-3672.0,0.00025,120]
[344745321,1733763128830,-321.0,0.00025002,2]
[344745322,1733763128839,-151.0,0.00025011,2]
[344745323,1733763128848,-616.78,0.00025012,2]
[344745324,1733763128858,-500.0,0.00025022,120]
[344745325,1733763128867,-200.0,0.00025086,120]
[344745326,1733763128876,-3229.79291245,0.000251,2]
[344745327,1733763128885,-1500.0,0.00025107,2]
[344745328,1733763128895,-1500.0,0.00025171,2]
[344745329,1733763128903,-1500.0,0.000252,2]
[344745330,1733763128913,-152.0,0.00025218,12]
[344745331,1733763128922,-1500.0,0.00025246,2]
[344745332,1733763128932,-321.0,0.00025248,2]
[344745333,1733763128941,-240.0,0.0002528,2]
[344745334,1733763128950,-204.0,0.0002528,2]
[344745335,1733763128960,-207.0,0.0002528,2]
[344745336,1733763128974,-947.0,0.000253,13]
[344745337,1733763128983,-280.0,0.000253,10]
[344745338,1733763128992,-1500.0,0.00025325,2]
[344745339,1733763129001,-1500.0,0.00025346,2]
[344745340,1733763129011,-2969.94,0.000255,14]
[344745341,1733763129020,-80609.0,0.000255,2]
[344745342,1733763129030,-500.0,0.00025548,120]
[344745343,1733763129039,-153.49,0.00025548,2]
[344745344,1733763129048,-500.0,0.00025586,120]
[344745345,1733763129058,-1500.0,0.00025682,2]
[344745346,1733763129068,-150.0,0.00025688,2]
[344745347,1733763129077,-201.0,0.0002572,2]
[344745348,1733763129088,-2110.0,0.00025726,2]
[344745349,1733763129097,-174.929,0.00025771,2]
[344745350,1733763129107,-1534.96,0.00025795,2]
[344745351,1733763129117,-947.0,0.000258,14]
[344745352,1733763129127,-152.0,0.00025806,13]
[344745353,1733763129136,-1545.158195,0.00025825,2]
[344745354,1733763129145,-1001.78,0.00025825,2]
[344745355,1733763129154,-1500.0,0.00025837,2]
[344745356,1733763129164,-369.52376417,0.00025853,4]
[344745357,1733763129172,-170.34598617,0.00025853,4]
[344745358,1733763129182,-150.0,0.00025853,4]
[344745359,1733763129192,-150.0,0.00025853,4]
[344745360,1733763129202,-236.39968009,0.00025853,4]
[344745361,1733763129214,-150.0,0.00025853,4]
[344745362,1733763129224,-282.14575305,0.00025853,4]
[344745363,1733763129235,-150.0,0.00025853,4]
[344745364,1733763129245,-150.0,0.00025853,4]
[344745365,1733763129254,-150.0,0.00025853,4]
[344745366,1733763129264,-150.0,0.00025853,4]
[344745367,1733763129273,-156.69673388,0.00025853,4]
[344745368,1733763129283,-150.0,0.00025853,4]
[344745369,1733763129292,-169.66135134,0.00025853,4]
[344745370,1733763129301,-150.33679454,0.00025853,4]
[344745371,1733763129310,-150.0,0.00025853,4]
[344745372,1733763129320,-699.95195078,0.00025855,2]
[344745373,1733763129330,-369.52376417,0.00025882,4]
[344745374,1733763129340,-170.34598617,0.00025882,4]
[344745375,1733763129350,-236.39968009,0.00025882,4]
[344745376,1733763129359,-150.0,0.00025907,4]
[344745377,1733763129369,-369.52376417,0.00025911,4]
[344745378,1733763129379,-170.34598617,0.00025911,4]
[344745379,1733763129388,-236.39968009,0.00025911,4]
[344745380,1733763129396,-369.52376417,0.0002594,4]
[344745381,1733763129406,-170.34598617,0.0002594,4]
[344745382,1733763129416,-236.39968009,0.0002594,4]
[344745383,1733763129426,-150.0,0.00025949,4]
[344745384,1733763129435,-150.0,0.0002596,4]
[344745385,1733763129448,-369.52376417,0.00025969,4]
[344745386,1733763129459,-170.34598617,0.00025969,4]
[344745387,1733763129469,-236.39968009,0.00025969,4]
[344745388,1733763129479,-1500.0,0.00025971,2]
[344745389,1733763129489,-150.61,0.00025975,2]
[344745390,1733763129499,-2000.0,0.00025977,120]
[344745391,1733763129509,-2000.0,0.00025986,7]
[344745392,1733763129519,-5300.0,0.00025986,7]
[344745393,1733763129529,-500.0,0.00025986,7]
[344745394,1733763129539,-572.90888381,0.0002599,2]
[344745395,1733763129550,-369.52376417,0.00025998,4]
[344745396,1733763129561,-170.34598617,0.00025998,4]
[344745397,1733763129571,-236.39968009,0.00025998,4]
[344745398,1733763129582,-50000.0,0.00026,4]
[344745399,1733763129597,-3600.0,0.00026,27]
[344745400,1733763129606,-4316.66937118,0.00026,2]
[344745401,1733763129616,-4433.65,0.00026,2]
[344745402,1733763129626,-10672.15587252,0.00026,2]
[344745403,1733763129636,-404.4,0.00026,2]
[344745404,1733763129646,-741390.63590567,0.00026,2]
[344745405,1733763129656,-200.0,0.00026,2]
[344745406,1733763129667,-734.98454645,0.00026,2]
[344745407,1733763129678,-3152.83263684,0.00026,2]
[344745408,1733763129687,-500.0,0.00026,2]
[344745409,1733763129697,-928.80608694,0.00026,2]
[344745410,1733763129709,-1000.0,0.00026,2]
[344745411,1733763129719,-273.81232503,0.00026,2]
[344745412,1733763129729,-500.0,0.00026,2]
[344745413,1733763129740,-1000.0,0.00026,2]
[344745414,1733763129750,-500.0,0.00026,2]
[344745415,1733763129759,-500.0,0.00026,2]
[344745416,1733763129769,-500.0,0.00026,2]
[344745417,1733763129778,-1000.0,0.00026,2]
[344745418,1733763129788,-500.0,0.00026,2]
[344745419,1733763129798,-1000.0,0.00026,2]
[344745420,1733763129808,-1000.0,0.00026,2]
[344745421,1733763129819,-1000.0,0.00026,2]
[344745422,1733763129828,-1000.0,0.00026,2]
[344745423,1733763129839,-1000.0,0.00026,2]
[344745424,1733763129848,-700.0,0.00026,2]
[344745425,1733763129858,-1000.0,0.00026,2]
[344745426,1733763129868,-500.0,0.00026,2]
[344745427,1733763129878,-700.0,0.00026,2]
[344745428,1733763129887,-500.0,0.00026,2]
[344745429,1733763129896,-1000.0,0.00026,2]
[344745430,1733763129906,-700.0,0.00026,2]
[344745431,1733763129915,-500.0,0.00026,2]
[344745432,1733763129925,-1000.0,0.00026,2]
[344745433,1733763129934,-700.0,0.00026,2]
[344745434,1733763129944,-969.01551873,0.00026,2]
[344745435,1733763129953,-1000.0,0.00026,2]
[344745436,1733763129965,-700.0,0.00026,2]
[344745437,1733763129975,-500.0,0.00026,2]
[344745438,1733763129985,-159.06896745,0.00026,2]
[344745439,1733763129995,-207.86137997,0.00026,2]
[344745440,1733763130004,-1000.0,0.00026,2]
[344745441,1733763130015,-700.0,0.00026,2]
[344745442,1733763130025,-500.0,0.00026,2]
[344745443,1733763130035,-500.0,0.00026,2]
[344745444,1733763130045,-500.0,0.00026,2]
[344745445,1733763130055,-500.7,0.00026,2]
[344745446,1733763130065,-1000.0,0.00026,2]
[344745447,1733763130075,-985.30517558,0.00026,2]
[344745448,1733763130085,-810.0,0.00026,2]
[344745449,1733763130095,-162.8325884,0.00026,2]
[344745450,1733763130105,-1000.0,0.00026,2]
[344745451,1733763130115,-700.0,0.00026,2]
[344745452,1733763130125,-500.0,0.00026,2]
[344745453,1733763130135,-700.0,0.00026,2]
[344745454,1733763130145,-700.0,0.00026,2]
[344745455,1733763130155,-700.0,0.00026,2]
[344745456,1733763130165,-700.0,0.00026,2]
[344745457,1733763130175,-700.0,0.00026,2]
[344745458,1733763130185,-500.0,0.00026,2]
[344745459,1733763130195,-700.0,0.00026,2]
[344745460,1733763130205,-297.19012242,0.00026,2]
[344745461,1733763130217,-700.0,0.00026,2]
[344745462,1733763130228,-997.20964168,0.00026,2]
[344745463,1733763130238,-500.0,0.00026,2]
[344745464,1733763130248,-500.47137461,0.00026,2]
[344745465,1733763130257,-500.0,0.00026,2]
[344745466,1733763130267,-687.34753946,0.00026,2]
[344745467,1733763130277,-500.0,0.00026,2]
[344745468,1733763130287,-500.0,0.00026,2]
[344745469,1733763130298,-159.29646985,0.00026,2]
[344745470,1733763130308,-500.0,0.00026,2]
[344745471,1733763130318,-1000.0,0.00026,2]
[344745472,1733763130328,-500.0,0.00026,2]
[344745473,1733763130339,-500.0,0.00026,2]
[344745474,1733763130349,-500.0,0.00026,2]
[344745475,1733763130359,-1000.0,0.00026,2]
[344745476,1733763130370,-500.0,0.00026,2]
[344745477,1733763130380,-500.0,0.00026,2]
[344745478,1733763130389,-328.58276844,0.00026,2]
[344745479,1733763130399,-500.0,0.00026,2]
[344745480,1733763130410,-1000.0,0.00026,2]
[344745481,1733763130420,-159.97143866,0.00026,2]
[344745482,1733763130430,-500.0,0.00026,2]
[344745483,1733763130440,-500.0,0.00026,2]
[344745484,1733763130450,-1000.0,0.00026,2]
[344745485,1733763130462,-546.77729366,0.00026,2]
[344745486,1733763130477,-500.0,0.00026,2]
[344745487,1733763130487,-500.0,0.00026,2]
[344745488,1733763130498,-500.0,0.00026,2]
[344745489,1733763130508,-1000.0,0.00026,2]
[344745490,1733763130518,-500.0,0.00026,2]
[344745491,1733763130528,-500.0,0.00026,2]
[344745492,1733763130539,-500.0,0.00026,2]
[344745493,1733763130549,-475.24133958,0.00026,2]
[344745494,1733763130559,-1000.0,0.00026,2]
[344745495,1733763130570,-500.0,0.00026,2]
[344745496,1733763130581,-500.0,0.00026,2]
[344745497,1733763130595,-1000.0,0.00026,2]
[344745498,1733763130604,-500.0,0.00026,2]
[344745499,1733763130614,-500.0,0.00026,2]
[344745500,1733763130624,-1000.0,0.00026,2]
[344745501,1733763130635,-500.0,0.00026,2]
[344745502,1733763130646,-500.0,0.00026,2]
[344745503,1733763130657,-1000.0,0.00026,2]
[344745504,1733763130667,-2400.0,0.00026,2]
[344745505,1733763130677,-500.0,0.00026,2]
[344745506,1733763130687,-1000.0,0.00026,2]
[344745507,1733763130698,-2400.0,0.00026,2]
[344745508,1733763130709,-500.0,0.00026,2]
[344745509,1733763130720,-2400.0,0.00026,2]
[344745510,1733763130730,-1000.0,0.00026,2]
[344745511,1733763130741,-473.21871603,0.00026,2]
[344745512,1733763130751,-1000.0,0.00026,2]
[344745513,1733763130762,-2400.0,0.00026,2]
[344745514,1733763130774,-500.0,0.00026,2]
[344745515,1733763130784,-156.73740761,0.00026,2]
[344745516,1733763130794,-1000.0,0.00026,2]
[344745517,1733763130804,-2400.0,0.00026,2]
[344745518,1733763130815,-953.82500204,0.00026,2]
[344745519,1733763130825,-500.0,0.00026,2]
[344745520,1733763130835,-1000.0,0.00026,2]
[344745521,1733763130845,-500.0,0.00026,2]
[344745522,1733763130855,-2400.0,0.00026,2]
[344745523,1733763130866,-500.0,0.00026,2]
[344745524,1733763130876,-700.0,0.00026,2]
[344745525,1733763130887,-2400.0,0.00026,2]
[344745526,1733763130897,-700.0,0.00026,2]
[344745527,1733763130907,-500.0,0.00026,2]
[344745528,1733763130917,-938.19696458,0.00026,2]
[344745529,1733763130926,-700.0,0.00026,2]
[344745530,1733763130937,-2400.0,0.00026,2]
[344745531,1733763130947,-500.0,0.00026,2]
[344745532,1733763130957,-700.0,0.00026,2]
[344745533,1733763130971,-2400.0,0.00026,2]
[344745534,1733763130982,-500.0,0.00026,2]
[344745535,1733763130992,-500.0,0.00026,2]
[344745536,1733763131002,-700.0,0.00026,2]
[344745537,1733763131012,-500.0,0.00026,2]
[344745538,1733763131022,-2400.0,0.00026,2]
[344745539,1733763131032,-700.0,0.00026,2]
[344745540,1733763131042,-2400.0,0.00026,2]
[344745541,1733763131053,-700.0,0.00026,2]
[344745542,1733763131063,-2400.0,0.00026,2]
[344745543,1733763131074,-706.5710406,0.00026,2]
[344745544,1733763131085,-700.0,0.00026,2]
[344745545,1733763131095,-500.0,0.00026,2]
[344745546,1733763131106,-500.0,0.00026,2]
[344745547,1733763131117,-700.0,0.00026,2]
[344745548,1733763131127,-2400.0,0.00026,2]
[344745549,1733763131137,-500.0,0.00026,2]
[344745550,1733763131147,-700.0,0.00026,2]
[344745551,1733763131157,-2400.0,0.00026,2]
[344745552,1733763131167,-700.0,0.00026,2]
[344745553,1733763131177,-700.0,0.00026,2]
[344745554,1733763131187,-500.0,0.00026,2]
[344745555,1733763131198,-500.0,0.00026,2]
[344745556,1733763131208,-700.0,0.00026,2]
[344745557,1733763131219,-500.0,0.00026,2]
[344745558,1733763131229,-700.0,0.00026,2]
[344745559,1733763131239,-500.7,0.00026,2]
[344745560,1733763131249,-500.0,0.00026,2]
[344745561,1733763131259,-475.24133958,0.00026,2]
[344745562,1733763131269,-500.0,0.00026,2]
[344745563,1733763131280,-473.21871603,0.00026,2]
[344745564,1733763131290,-328.58276844,0.00026,2]
[344745565,1733763131300,-500.0,0.00026,2]
[344745566,1733763131310,-187.20805384,0.00026,2]
[344745567,1733763131321,-150.0,0.00026013,4]
[344745568,1733763131332,-369.52376417,0.00026027,4]
[344745569,1733763131342,-170.34598617,0.00026027,4]
[344745570,1733763131353,-236.39968009,0.00026027,4]
[344745571,1733763131364,-150.0,0.00026033,4]
[344745572,1733763131374,-519.56272452,0.0002604,2]
[344745573,1733763131384,-150.0,0.00026045,4]
[344745574,1733763131394,-3801.27,0.00026048,7]
[344745575,1733763131404,-3801.27,0.00026048,7]
[344745576,1733763131414,-3801.27,0.00026048,7]
[344745577,1733763131425,-3801.27,0.00026048,7]
[344745578,1733763131435,-369.52376417,0.00026057,4]
[344745579,1733763131445,-170.34598617,0.00026057,4]
[344745580,1733763131456,-236.39968009,0.00026057,4]
[344745581,1733763131471,-150.0,0.00026066,4]
[344745582,1733763131481,-369.52376417,0.00026086,4]
[344745583,1733763131493,-170.34598617,0.00026086,4]
[344745584,1733763131504,-236.39968009,0.00026086,4]
[344745585,1733763131514,-1500.0,0.00026108,2]
[344745586,1733763131524,-369.52376417,0.00026115,4]
[344745587,1733763131536,-170.34598617,0.00026115,4]
[344745588,1733763131546,-236.39968009,0.00026115,4]
[344745589,1733763131556,-150.0,0.00026119,4]
[344745590,1733763131566,-240.0,0.0002614,2]
[344745591,1733763131576,-204.0,0.0002614,2]
[344745592,1733763131589,-207.0,0.0002614,2]
[344745593,1733763131600,-150.0,0.00026141,4]
[344745594,1733763131610,-369.52376417,0.00026144,4]
[344745595,1733763131620,-170.34598617,0.00026144,4]
[344745596,1733763131632,-236.39968009,0.00026144,4]
[344745597,1733763131641,-1500.0,0.00026148,2]
[344745598,1733763131651,-38884.82700183,0.00026158,4]
[344745599,1733763131661,-369.52376417,0.00026173,4]
[344745600,1733763131673,-170.34598617,0.00026173,4]
[344745601,1733763131684,-236.39968009,0.00026173,4]
[344745602,1733763131695,-150.0,0.00026173,4]
[344745603,1733763131705,-500.0,0.00026178,120]
[344745604,1733763131718,-369.52376417,0.00026202,4]
[344745605,1733763131728,-170.34598617,0.00026202,4]
[344745606,1733763131737,-236.39968009,0.00026202,4]
[344745607,1733763131747,-150.0,0.00026212,4]
[344745608,1733763131757,-150.0,0.00026212,4]
[344745609,1733763131767,-150.0,0.00026226,4]
[344745610,1733763131778,-2110.0,0.00026226,2]
[344745611,1733763131788,-1500.0,0.00026227,2]
[344745612,1733763131799,-369.52376417,0.00026231,4]
[344745613,1733763131809,-170.34598617,0.00026231,4]
[344745614,1733763131820,-236.39968009,0.00026231,4]
[344745615,1733763131830,-150.0,0.00026236,4]
[344745616,1733763132066,-369.52376417,0.0002626,4]
[344745617,1733763132077,-170.34598617,0.0002626,4]
[344745618,1733763132087,-236.39968009,0.0002626,4]
[344745619,1733763132097,-150.0,0.00026279,4]
[344745620,1733763132106,-1500.0,0.00026279,2]
[344745621,1733763132116,-369.52376417,0.00026289,4]
[344745622,1733763132126,-170.34598617,0.00026289,4]
[344745623,1733763132136,-236.39968009,0.00026289,4]
[344745624,1733763132147,-1500.0,0.0002629,2]
[344745625,1733763132158,-947.0,0.000263,14]
[344745626,1733763132168,-200.0,0.00026305,120]
[344745627,1733763132178,-369.52376417,0.00026318,4]
[344745628,1733763132188,-170.34598617,0.00026318,4]
[344745629,1733763132199,-236.39968009,0.00026318,4]
[344745630,1733763132212,-3801.27,0.00026322,7]
[344745631,1733763132223,-3801.27,0.00026322,7]
[344745632,1733763132232,-150.0,0.00026332,4]
[344745633,1733763132242,-150.0,0.00026332,4]
[344745634,1733763132252,-369.52376417,0.00026347,4]
[344745635,1733763132262,-170.34598617,0.00026347,4]
[344745636,1733763132272,-236.39968009,0.00026347,4]
[344745637,1733763132282,-369.52376417,0.00026376,4]
[344745638,1733763132292,-170.34598617,0.00026376,4]
[344745639,1733763132301,-236.39968009,0.00026376,4]
[344745640,1733763132311,-1500.0,0.00026385,2]
[344745641,1733763132322,-150.0,0.00026385,4]
[344745642,1733763132332,-150.0,0.00026392,4]
[344745643,1733763132343,-152.0,0.00026394,14]
[344745644,1733763132353,-26210.07481895,0.000264,2]
[344745645,1733763132363,-369.52376417,0.00026405,4]
[344745646,1733763132374,-170.34598617,0.00026405,4]
[344745647,1733763132384,-236.39968009,0.00026405,4]
[344745648,1733763132394,-150.0,0.00026428,4]
[344745649,1733763132404,-369.52376417,0.00026434,4]
[344745650,1733763132415,-170.34598617,0.00026434,4]
[344745651,1733763132425,-236.39968009,0.00026434,4]
[344745652,1733763132436,-150.0,0.00026439,4]
[344745653,1733763132446,-500.0,0.00026446,120]
[344745654,1733763132455,-1500.0,0.00026448,2]
[344745655,1733763132468,-369.52376417,0.00026463,4]
[344745656,1733763132479,-170.34598617,0.00026463,4]
[344745657,1733763132490,-236.39968009,0.00026463,4]
[344745658,1733763132499,-201.0,0.0002647,2]
[344745659,1733763132510,-498.9,0.00026484,2]
[344745660,1733763132520,-1500.0,0.00026489,2]
[344745661,1733763132529,-369.52376417,0.00026492,4]
[344745662,1733763132540,-170.34598617,0.00026492,4]
[344745663,1733763132550,-236.39968009,0.00026492,4]
[344745664,1733763132560,-150.0,0.00026492,4]
[344745665,1733763132569,-3000.0,0.000265,2]
[344745666,1733763132579,-1500.0,0.00026506,2]
[344745667,1733763132591,-369.52376417,0.00026521,4]
[344745668,1733763132601,-170.34598617,0.00026521,4]
[344745669,1733763132611,-236.39968009,0.00026521,4]
[344745670,1733763132622,-150.0,0.00026524,4]
[344745671,1733763132632,-150.0,0.00026545,4]
[344745672,1733763132642,-1500.0,0.00026546,2]
[344745673,1733763132651,-1500.0,0.00026548,2]
[344745674,1733763132661,-369.52376417,0.0002655,4]
[344745675,1733763132673,-170.34598617,0.0002655,4]
[344745676,1733763132683,-236.39968009,0.0002655,4]
[344745677,1733763132692,-150.0,0.00026572,4]
[344745678,1733763132702,-150.0,0.00026572,4]
[344745679,1733763132714,-150.0,0.00026572,4]
[344745680,1733763132724,-305.386964,0.00026575,2]
[344745681,1733763132733,-369.52376417,0.00026579,4]
[344745682,1733763132742,-170.34598617,0.00026579,4]
[344745683,1733763132752,-236.39968009,0.00026579,4]
[344745684,1733763132762,-3801.27,0.00026595,7]
[344745685,1733763132772,-3801.27,0.00026595,7]
[344745686,1733763132782,-150.0,0.00026598,4]
[344745687,1733763132791,-369.52376417,0.00026608,4]
[344745688,1733763132800,-170.34598617,0.00026608,4]
[344745689,1733763132813,-236.39968009,0.00026608,4]
[344745690,1733763132823,-150.0,0.00026619,4]
[344745691,1733763132833,-1500.0,0.0002662,2]
[344745692,1733763132843,-170.34598617,0.00026637,4]
[344745693,1733763132853,-236.39968009,0.00026637,4]
[344745694,1733763132863,-150.0,0.00026645,2]
[344745695,1733763132872,-1001.78,0.0002665,2]
[344745696,1733763132882,-150.0,0.00026651,4]
[344745697,1733763132892,-170.34598617,0.00026666,4]
[344745698,1733763132901,-236.39968009,0.00026666,4]
[344745699,1733763132911,-170.34598617,0.00026695,4]
[344745700,1733763132921,-236.39968009,0.00026695,4]
[344745701,1733763132930,-150.0,0.00026705,4]
[344745702,1733763132939,-150.0,0.00026715,4]
[344745703,1733763132948,-170.34598617,0.00026724,4]
[344745704,1733763132959,-236.39968009,0.00026724,4]
[344745705,1733763132971,-2110.0,0.00026726,2]
[344745706,1733763132981,-1500.0,0.00026747,2]
[344745707,1733763132991,-150.0,0.00026751,4]
[344745708,1733763133001,-170.34598617,0.00026753,4]
[344745709,1733763133011,-236.39968009,0.00026753,4]
[344745710,1733763133020,-150.0,0.00026758,4]
[344745711,1733763133031,-150.0,0.00026758,2]
[344745712,1733763133040,-1500.0,0.0002677,2]
[344745713,1733763133050,-1500.0,0.00026771,2]
[344745714,1733763133059,-1500.0,0.00026778,2]
[344745715,1733763133069,-170.34598617,0.00026782,4]
[344745716,1733763133078,-236.39968009,0.00026782,4]
[344745717,1733763133088,-947.0,0.000268,15]
[344745718,1733763133099,-170.34598617,0.00026811,4]
[344745719,1733763133108,-236.39968009,0.00026811,4]
[344745720,1733763133118,-150.0,0.00026811,4]